bitfinex/quotes_BTCUSD_20250831
["timestamp","ask_amount","ask_price","bid_price","bid_amount"]
[1756634611840,0.001,108680.0,108670.0,0.53851988]
[1756634612061,0.18732964,108690.0,108670.0,0.53851988]
[1756634612241,0.19584962,108690.0,108680.0,0.00230033]
[1756634612449,0.19793962,108690.0,108680.0,0.09513001]
[1756634612681,0.19793962,108690.0,108680.0,0.09743034]
[1756634613141,0.19472962,108690.0,108680.0,0.09743034]
[1756634613298,0.19263962,108690.0,108680.0,0.09843034]
[1756634614458,0.19263962,108690.0,108680.0,0.11936916]
[1756634614630,0.19472962,108690.0,108680.0,0.27222883]
[1756634614811,0.19793962,108690.0,108680.0,0.27222883]
[1756634615042,0.19472962,108690.0,108680.0,0.17101282]
[1756634615238,0.19472962,108690.0,108680.0,0.32617282]
[1756634615420,0.19793962,108690.0,108680.0,0.32617282]
[1756634615623,0.00851998,108690.0,108680.0,0.51019931]
[1756634615828,0.00851998,108690.0,108680.0,0.58512931]
[1756634616389,0.1932565,108700.0,108680.0,0.58512931]
[1756634616611,0.00866383,108700.0,108690.0,0.3002285]
[1756634616824,0.00866383,108700.0,108690.0,0.38007529]
[1756634618495,0.00866064,108700.0,108690.0,0.38007529]
[1756634619263,0.00866064,108700.0,108690.0,0.53523529]
[1756634619852,0.00866064,108700.0,108690.0,0.53723529]
[1756634620076,0.00866064,108700.0,108690.0,0.53923529]
[1756634624133,0.00866064,108700.0,108690.0,0.38407529]
[1756634624338,0.00866064,108700.0,108690.0,0.53919529]
[1756634626256,0.00866064,108700.0,108690.0,0.38407529]
[1756634626465,0.01075064,108700.0,108690.0,0.53602529]
[1756634626899,0.00866064,108700.0,108690.0,0.53602529]
[1756634629086,0.00014318,108700.0,108690.0,0.53919529]
[1756634629801,0.19264791,108700.0,108690.0,0.53919529]
[1756634630441,0.19264791,108700.0,108690.0,0.58075075]
[1756634631231,0.19264791,108700.0,108690.0,0.58071075]
[1756634633167,0.19264791,108700.0,108690.0,0.57754075]
[1756634636500,0.00866453,108700.0,108690.0,0.58073075]
[1756634636700,0.19265717,108700.0,108690.0,0.58073075]
[1756634637465,0.00866453,108700.0,108690.0,0.58073075]
[1756634638056,0.00866453,108700.0,108690.0,0.53917529]
[1756634639092,0.19265717,108700.0,108690.0,0.53917529]
[1756634639881,0.19266703,108700.0,108690.0,0.53917529]
[1756634640097,0.19266703,108700.0,108690.0,0.38409529]
[1756634640302,0.19266703,108700.0,108690.0,0.53594529]
[1756634641256,0.00867439,108700.0,108690.0,0.53594529]
[1756634642107,0.19266703,108700.0,108690.0,0.53594529]
[1756634643265,0.19472703,108700.0,108690.0,0.09698001]
[1756634643469,0.55494344,108700.0,108690.0,0.004]
[1756634643684,0.56134651,108700.0,108690.0,0.004]
[1756634643896,0.71638651,108700.0,108690.0,0.004]
[1756634644325,0.71638651,108700.0,108690.0,0.002]
[1756634644530,0.18404343,108670.0,108660.0,0.07076]
[1756634644741,0.18404343,108670.0,108660.0,0.31878001]
[1756634644944,0.18924343,108670.0,108660.0,0.16374001]
[1756634645150,0.18924343,108670.0,108660.0,0.31878001]
[1756634645715,0.18924343,108670.0,108660.0,0.34271883]
[1756634646958,0.18924343,108670.0,108660.0,0.41461059]
[1756634647597,0.18924343,108670.0,108660.0,0.41761059]
[1756634648335,0.18924343,108670.0,108660.0,0.34571883]
[1756634649940,0.19873683,108670.0,108660.0,0.34571883]
[1756634651344,0.19873683,108670.0,108660.0,0.34478535]
[1756634651529,0.18924343,108670.0,108660.0,0.34478535]
[1756634655356,0.18924343,108670.0,108660.0,0.18974535]
[1756634655549,0.18924343,108670.0,108660.0,0.34478535]
[1756634655936,0.18924343,108670.0,108660.0,0.34693535]
[1756634656140,0.18924343,108670.0,108660.0,0.53099572]
[1756634656345,0.18924343,108670.0,108660.0,0.52799572]
[1756634656553,0.18402649,108680.0,108670.0,0.18404343]
[1756634656753,0.19635003,108690.0,108670.0,0.28021344]
[1756634656953,0.19321003,108690.0,108680.0,0.43645683]
[1756634657192,0.19321003,108690.0,108680.0,0.4341565]
[1756634657394,0.19527003,108690.0,108680.0,0.4341565]
[1756634657932,0.19841003,108690.0,108680.0,0.25013001]
[1756634658268,0.20041003,108690.0,108680.0,0.25013001]
[1756634658975,0.01640047,108690.0,108680.0,0.25013001]
[1756634659389,0.01640047,108690.0,108680.0,0.27546201]
[1756634659589,0.20144136,108690.0,108680.0,0.27546201]
[1756634660401,0.20144136,108690.0,108680.0,0.27331201]
[1756634661187,0.21070563,108690.0,108680.0,0.27331201]
[1756634661405,0.20144136,108690.0,108680.0,0.27541201]
[1756634661777,0.20144136,108690.0,108680.0,0.27331201]
[1756634662177,0.20144136,108690.0,108680.0,0.24798001]
[1756634665351,0.20144136,108690.0,108680.0,0.25008001]
[1756634667596,0.20144136,108690.0,108680.0,0.4341065]
[1756634667793,0.19830136,108690.0,108680.0,0.4341065]
[1756634668453,0.19830136,108690.0,108680.0,0.25008001]
[1756634668633,0.19830136,108690.0,108680.0,0.29655248]
[1756634670544,0.20123136,108690.0,108680.0,0.29655248]
[1756634670943,0.20123136,108690.0,108680.0,0.13945248]
[1756634671150,0.20123136,108690.0,108680.0,0.09398001]
[1756634671430,0.20123136,108690.0,108680.0,0.24894001]
[1756634672755,0.20123136,108690.0,108680.0,0.25104001]
[1756634675125,0.20123136,108690.0,108680.0,0.24894001]
[1756634676637,0.20123136,108690.0,108680.0,0.25104001]
[1756634676858,0.20123136,108690.0,108680.0,0.27920421]
[1756634677085,0.20123136,108690.0,108680.0,0.27710421]
[1756634677298,0.20123136,108690.0,108680.0,0.001]
[1756634677510,0.20976632,108690.0,108680.0,0.001]
[1756634677933,0.54976632,108690.0,108680.0,0.001]
[1756634679175,0.70468632,108690.0,108680.0,0.001]
[1756634681297,0.69615136,108690.0,108680.0,0.001]
[1756634681523,0.70468687,108690.0,108680.0,0.001]
[1756634683055,0.73235287,108690.0,108680.0,0.001]
[1756634686741,0.57743287,108690.0,108680.0,0.001]
[1756634687046,0.73235287,108690.0,108680.0,0.001]
[1756634687483,0.57743287,108690.0,108680.0,0.001]
[1756634687664,0.73235287,108690.0,108680.0,0.001]
[1756634687844,0.57244287,108690.0,108680.0,0.0031]
[1756634688042,0.57442287,108690.0,108680.0,0.00604]
[1756634688242,0.57735287,108690.0,108680.0,0.0031]
[1756634688826,0.57735287,108690.0,108680.0,0.001]
[1756634691860,0.57442287,108690.0,108680.0,0.00309]
[1756634692066,0.56588736,108690.0,108680.0,0.00309]
[1756634692276,0.57442351,108690.0,108680.0,0.00309]
[1756634692481,0.57760351,108690.0,108680.0,0.00309]
[1756634692689,0.57760363,108690.0,108680.0,0.001]
[1756634698587,0.48586497,108690.0,108680.0,0.001]
[1756634698787,0.66990586,108690.0,108680.0,0.001]
[1756634699939,0.67910633,108690.0,108680.0,0.001]
[1756634700559,0.52418633,108690.0,108680.0,0.001]
[1756634701183,0.54126159,108690.0,108680.0,0.00309]
[1756634701324,0.49136033,108690.0,108680.0,0.00619]
[1756634701734,0.49136208,108690.0,108680.0,0.00619]
[1756634702196,0.49136208,108690.0,108680.0,0.00309]
[1756634702390,0.49659208,108690.0,108680.0,0.00309]
[1756634702596,0.51366971,108690.0,108680.0,0.00309]
[1756634702966,0.51366971,108690.0,108680.0,0.001]
[1756634705239,0.5136761,108690.0,108680.0,0.001]
[1756634711546,0.5136761,108690.0,108680.0,0.00309]
[1756634711705,0.5104961,108690.0,108680.0,0.00309]
[1756634712318,0.51051455,108690.0,108680.0,0.00309]
[1756634712919,0.51051461,108690.0,108680.0,0.00309]
[1756634713272,0.51369461,108690.0,108680.0,0.00309]
[1756634713679,0.51369461,108690.0,108680.0,0.001]
[1756634713857,0.51369474,108690.0,108680.0,0.001]
[1756634715047,0.18404343,108670.0,108660.0,0.04961759]
[1756634715293,0.52407731,108650.0,108640.0,0.04961759]
[1756634715464,0.52407731,108650.0,108640.0,0.09507001]
[1756634716088,0.52612731,108650.0,108640.0,0.09507001]
[1756634716466,0.52930731,108650.0,108640.0,0.09507001]
[1756634716669,0.52930731,108650.0,108640.0,0.13246033]
[1756634717080,0.52930731,108650.0,108640.0,0.13546033]
[1756634717281,0.52930731,108650.0,108640.0,0.00304756]
[1756634718107,0.52930731,108650.0,108640.0,0.00704756]
[1756634718315,0.52930731,108650.0,108640.0,4.756e-05]
[1756634718707,0.52930731,108650.0,108640.0,0.00104756]
[1756634718908,4.10976931,108650.0,108640.0,0.00104756]
[1756634719110,4.10976931,108650.0,108640.0,4.756e-05]
[1756634719111,4.13533867,108650.0,108640.0,4.756e-05]
[1756634719315,4.16301667,108650.0,108640.0,4.756e-05]
[1756634719519,0.52412815,108620.0,108610.0,0.22494625]
[1756634719734,0.52412815,108620.0,108610.0,0.16304626]
[1756634719937,0.52926815,108620.0,108610.0,0.31792626]
[1756634720358,0.53568917,108620.0,108610.0,0.31991626]
[1756634720765,0.5241451,108610.0,108600.0,3.06908501]
[1756634720956,0.5292851,108610.0,108600.0,3.31694502]
[1756634721155,0.5292851,108610.0,108600.0,3.31893502]
[1756634721395,0.5292851,108610.0,108600.0,3.31694502]
[1756634721546,0.5292851,108610.0,108600.0,3.16206502]
[1756634721956,0.52937284,108610.0,108600.0,3.16206502]
[1756634722374,0.52937284,108610.0,108600.0,3.16405502]
[1756634723043,0.52937284,108610.0,108600.0,3.16605502]
[1756634723435,0.52937284,108610.0,108600.0,3.16805502]
[1756634724062,0.52937284,108610.0,108600.0,3.07308501]
[1756634724222,0.68425284,108610.0,108600.0,3.07308501]
[1756634724622,0.68429284,108610.0,108600.0,3.07308501]
[1756634724820,0.68429284,108610.0,108600.0,3.07108501]
[1756634725193,0.68429284,108610.0,108600.0,3.07008501]
[1756634726369,0.68429284,108610.0,108600.0,3.07108501]
[1756634726576,0.72992005,108610.0,108600.0,3.07108501]
[1756634726796,4.16397117,108610.0,108600.0,3.07108501]
[1756634726996,4.15450205,108610.0,108600.0,3.07008501]
[1756634727232,4.15450205,108610.0,108600.0,3.07108501]
[1756634727495,4.15450205,108610.0,108600.0,3.07008501]
[1756634727496,0.57400005,108610.0,108600.0,3.07008501]
[1756634727683,0.72892005,108610.0,108600.0,3.07008501]
[1756634727885,0.72992005,108610.0,108600.0,3.07008501]
[1756634728125,0.70223205,108610.0,108600.0,3.06908501]
[1756634730415,0.54731205,108610.0,108600.0,3.06908501]
[1756634730859,0.69709205,108610.0,108600.0,3.07107501]
[1756634731072,0.54217205,108610.0,108600.0,3.22599501]
[1756634731277,0.53037284,108610.0,108600.0,3.22400501]
[1756634731496,0.54728338,108610.0,108600.0,3.22599501]
[1756634732116,0.54728338,108610.0,108600.0,3.06908501]
[1756634732117,0.70220338,108610.0,108600.0,3.06908501]
[1756634732326,4.13624026,108610.0,108600.0,3.06908501]
[1756634733006,4.22922027,108610.0,108600.0,3.06908501]
[1756634733419,4.30002027,108610.0,108600.0,2.51417218]
[1756634733676,4.29155963,108610.0,108600.0,2.40188167]
[1756634733896,4.31442599,108610.0,108600.0,2.17592009]
[1756634734114,4.31442599,108610.0,108600.0,2.03448581]
[1756634734337,4.31442599,108610.0,108600.0,1.94218758]
[1756634735314,4.30635018,108610.0,108600.0,1.94218758]
[1756634735522,4.30639018,108610.0,108600.0,1.94218758]
[1756634736470,4.34888066,108610.0,108600.0,1.94218758]
[1756634738673,4.36329499,108610.0,108600.0,1.94218758]
[1756634739861,4.39098699,108610.0,108600.0,1.94218758]
[1756634740557,4.23602699,108610.0,108600.0,1.94218758]
[1756634740918,4.39098699,108610.0,108600.0,1.94218758]
[1756634741267,4.23602699,108610.0,108600.0,1.94218758]
[1756634741479,4.39098699,108610.0,108600.0,1.94218758]
[1756634741677,0.49526482,108610.0,108600.0,1.94417758]
[1756634741870,0.49325482,108610.0,108600.0,1.94417758]
[1756634742269,0.83526482,108610.0,108600.0,1.94417758]
[1756634742528,0.83839482,108610.0,108600.0,1.94417758]
[1756634743085,0.83526482,108610.0,108600.0,1.94417758]
[1756634743310,0.83526482,108610.0,108600.0,1.94732758]
[1756634743311,0.79712029,108610.0,108600.0,1.94732758]
[1756634743531,0.79076434,108610.0,108600.0,1.94732758]
[1756634744341,0.77385956,108610.0,108600.0,1.94732758]
[1756634744643,0.71200804,108610.0,108600.0,1.94732758]
[1756634744850,0.70564443,108610.0,108600.0,1.94732758]
[1756634745183,0.70564758,108610.0,108600.0,1.94732758]
[1756634745380,0.71201601,108610.0,108600.0,1.94732758]
[1756634746028,0.71201601,108610.0,108600.0,1.94417758]
[1756634749528,0.71717601,108610.0,108600.0,1.94218758]
[1756634749940,0.80763698,108610.0,108600.0,1.94218758]
[1756634750138,0.80764435,108610.0,108600.0,1.94218758]
[1756634754350,0.65268435,108610.0,108600.0,1.94433758]
[1756634754573,0.80248435,108610.0,108600.0,1.94746758]
[1756634755028,0.79399944,108610.0,108600.0,1.94746758]
[1756634755288,0.80263868,108610.0,108600.0,1.94746758]
[1756634755503,0.80263868,108610.0,108600.0,2.37956965]
[1756634755504,0.22831135,108610.0,108600.0,2.37956965]
[1756634755720,0.02667003,108610.0,108600.0,2.37956965]
[1756634755928,0.02667187,108610.0,108600.0,2.49554697]
[1756634756808,0.01814241,108610.0,108600.0,2.49554697]
[1756634757405,0.00108774,108610.0,108600.0,2.49554697]
[1756634758194,8.774e-05,108610.0,108600.0,2.34058697]
[1756634758494,8.774e-05,108610.0,108600.0,2.34258697]
[1756634758732,8.774e-05,108610.0,108600.0,2.49750697]
[1756634758974,8.774e-05,108610.0,108600.0,2.49850697]
[1756634764319,8.774e-05,108610.0,108600.0,2.49860697]
[1756634767556,8.774e-05,108610.0,108600.0,2.34368697]
[1756634767779,8.774e-05,108610.0,108600.0,2.49860697]
[1756634768820,8.774e-05,108610.0,108600.0,2.50340942]
[1756634770443,8.774e-05,108610.0,108600.0,2.55340942]
[1756634770584,8.774e-05,108610.0,108600.0,2.60302701]
[1756634770782,8.774e-05,108610.0,108600.0,2.60002701]
[1756634771085,0.0721143,108640.0,108630.0,0.1841112]
[1756634771306,0.0721143,108640.0,108630.0,0.54491368]
[1756634771770,0.59932499,108660.0,108650.0,0.18407731]
[1756634771903,0.4121143,108660.0,108650.0,0.43412732]
[1756634772527,0.34,108660.0,108650.0,0.43412732]
[1756634773129,0.52602037,108660.0,108650.0,0.43422732]
[1756634773377,0.52917037,108660.0,108650.0,0.43422732]
[1756634773620,0.52917037,108660.0,108650.0,0.09308001]
[1756634773855,0.52917037,108660.0,108650.0,0.24796001]
[1756634774081,0.53217037,108660.0,108650.0,0.24796001]
[1756634774969,0.53317037,108660.0,108650.0,0.24796001]
[1756634775613,0.53217037,108660.0,108650.0,0.24796001]
[1756634775993,0.53017037,108660.0,108650.0,0.24796001]
[1756634776208,0.53017037,108660.0,108650.0,0.43203732]
[1756634776416,0.53031357,108660.0,108650.0,0.43203732]
[1756634776619,0.53031357,108660.0,108650.0,0.49365902]
[1756634777228,0.52931357,108660.0,108650.0,0.49365902]
[1756634777435,0.52931357,108660.0,108650.0,0.43203732]
[1756634777637,0.52931357,108660.0,108650.0,0.24796001]
[1756634780047,0.52931357,108660.0,108650.0,0.09308001]
[1756634780255,0.52931357,108660.0,108650.0,0.24824001]
[1756634783444,0.53781423,108660.0,108650.0,0.24824001]
[1756634783862,0.19781423,108660.0,108650.0,0.24824001]
[1756634784063,0.19781423,108660.0,108650.0,0.26316277]
[1756634786023,0.18931357,108660.0,108650.0,0.26316277]
[1756634786238,0.19782561,108660.0,108650.0,0.26316277]
[1756634786652,0.19782671,108660.0,108650.0,0.26316277]
[1756634787092,0.53782671,108660.0,108650.0,0.24824001]
[1756634788615,0.53782671,108660.0,108650.0,0.0001]
[1756634788840,0.53782671,108660.0,108650.0,0.15522]
[1756634789062,0.69294671,108660.0,108650.0,0.0001]
[1756634789328,0.7099789,108660.0,108650.0,0.0001]
[1756634791122,0.5548589,108660.0,108650.0,0.0001]
[1756634791732,0.53782671,108660.0,108650.0,0.0001]
[1756634791942,0.53782671,108660.0,108650.0,0.00240096]
[1756634794083,0.53782671,108660.0,108650.0,0.00449096]
[1756634795461,0.53782671,108660.0,108650.0,0.00219]
[1756634795691,0.53782671,108660.0,108650.0,0.0001]
[1756634796106,0.55488275,108660.0,108650.0,0.0001]
[1756634796317,0.53782671,108660.0,108650.0,0.0001]
[1756634796729,0.53784191,108660.0,108650.0,0.0001]
[1756634797148,0.55489853,108660.0,108650.0,0.0001]
[1756634797556,0.55489853,108660.0,108650.0,0.1551]
[1756634798014,0.55489853,108660.0,108650.0,0.0001]
[1756634798816,0.55479853,108660.0,108650.0,0.0001]
[1756634802617,0.54978853,108660.0,108650.0,0.00219]
[1756634803406,0.55177853,108660.0,108650.0,0.00219]
[1756634803634,0.55471853,108660.0,108650.0,0.00219]
[1756634804520,0.53766191,108660.0,108650.0,0.00219]
[1756634805175,0.53766191,108660.0,108650.0,0.09517001]
[1756634807517,0.53767527,108660.0,108650.0,0.09517001]
[1756634807950,0.53767527,108660.0,108650.0,0.10717368]
[1756634808125,0.53767527,108660.0,108650.0,0.09517001]
[1756634808386,0.53473527,108660.0,108650.0,0.09517001]
[1756634808595,0.53274527,108660.0,108650.0,0.28463828]
[1756634808738,0.53274527,108660.0,108650.0,0.28233732]
[1756634808937,0.53473527,108660.0,108650.0,0.27924732]
[1756634809207,0.53473527,108660.0,108650.0,0.34139646]
[1756634809627,0.53473527,108660.0,108650.0,0.15731915]
[1756634810462,0.53797527,108660.0,108650.0,0.15731915]
[1756634812376,0.52943357,108660.0,108650.0,0.09517001]
[1756634813467,0.52619357,108660.0,108650.0,0.09517001]
[1756634813714,0.18420357,108660.0,108650.0,0.28237732]
[1756634813839,0.52420357,108660.0,108650.0,0.28237732]
[1756634815852,0.20577262,108670.0,108650.0,0.28237732]
[1756634816051,0.20577262,108670.0,108660.0,0.15492]
[1756634816331,0.20785262,108670.0,108660.0,0.15492]
[1756634816830,0.18406037,108660.0,108650.0,0.23192996]
[1756634816993,0.18406037,108660.0,108650.0,0.38579996]
[1756634817394,0.18614037,108660.0,108650.0,0.38579996]
[1756634819526,0.19753477,108670.0,108650.0,0.57300727]
[1756634819746,0.1840926,108670.0,108660.0,0.27934113]
[1756634819959,0.1840926,108670.0,108660.0,0.35822722]
[1756634820366,0.1840926,108670.0,108660.0,0.27916038]
[1756634820590,0.1861726,108670.0,108660.0,0.43404038]
[1756634820792,0.20563518,108680.0,108670.0,0.18304343]
[1756634820999,0.20771518,108680.0,108670.0,0.27602344]
[1756634821208,0.20771518,108680.0,108670.0,0.27814344]
[1756634821432,0.20771518,108680.0,108670.0,0.15712139]
[1756634821679,0.20771518,108680.0,108670.0,0.15730193]
[1756634822071,0.20771518,108680.0,108670.0,0.15530193]
[1756634822487,0.20971518,108680.0,108670.0,0.15530193]
[1756634822695,0.20039745,108680.0,108670.0,0.34146536]
[1756634823005,0.19831745,108680.0,108670.0,0.33916482]
[1756634823193,0.005,108680.0,108670.0,0.34229482]
[1756634823614,0.0030477,108680.0,108670.0,0.34229482]
[1756634823869,0.18707419,108680.0,108670.0,0.34229482]
[1756634824090,0.19139419,108680.0,108670.0,0.30996139]
[1756634824808,0.19139419,108680.0,108670.0,0.24582001]
[1756634825443,0.19139419,108680.0,108670.0,0.24682001]
[1756634825672,0.19139419,108680.0,108670.0,0.24582001]
[1756634825883,0.1988348,108680.0,108670.0,0.09398001]
[1756634826113,0.1988348,108680.0,108670.0,0.24982001]
[1756634826312,0.1988348,108680.0,108670.0,0.24682001]
[1756634826523,0.1988348,108680.0,108670.0,0.24782001]
[1756634826733,0.1988348,108680.0,108670.0,0.24682001]
[1756634827167,0.1988348,108680.0,108670.0,0.09198001]
[1756634827413,0.1988348,108680.0,108670.0,0.24682001]
[1756634833333,0.1988348,108680.0,108670.0,0.09198001]
[1756634833482,0.1988348,108680.0,108670.0,0.24682001]
[1756634834138,0.1988348,108680.0,108670.0,0.09198001]
[1756634834330,0.1988348,108680.0,108670.0,0.24682001]
[1756634835775,0.1988348,108680.0,108670.0,0.09198001]
[1756634836039,0.1988348,108680.0,108670.0,0.24682001]
[1756634841397,0.1988348,108680.0,108670.0,0.24886001]
[1756634842398,0.1955948,108680.0,108670.0,0.24886001]
[1756634842595,0.1935148,108680.0,108670.0,0.27725901]
[1756634842781,0.1935148,108680.0,108670.0,0.27405901]
[1756634842981,0.1935148,108680.0,108670.0,0.25206001]
[1756634843182,0.18407419,108680.0,108670.0,0.25206001]
[1756634843388,0.18407419,108680.0,108670.0,0.43610344]
[1756634843802,0.18407419,108680.0,108670.0,0.46376644]
[1756634844031,0.18407419,108680.0,108670.0,0.27972301]
[1756634844230,0.18407419,108680.0,108670.0,0.32610129]
[1756634847430,0.18407419,108680.0,108670.0,0.58090472]
[1756634847891,4.77e-05,108680.0,108670.0,0.58090472]
[1756634848136,0.18407419,108680.0,108670.0,0.58090472]
[1756634851356,0.18407419,108680.0,108670.0,0.58043312]
[1756634853118,4.77e-05,108680.0,108670.0,0.58043312]
[1756634854244,0.18407419,108680.0,108670.0,0.58043312]
[1756634855831,4.77e-05,108680.0,108670.0,0.58043312]
[1756634857024,0.53618392,108700.0,108670.0,0.58043312]
[1756634857394,0.18403958,108690.0,108670.0,0.55277012]
[1756634857601,0.18403958,108690.0,108680.0,0.02766]
[1756634857801,0.18403958,108690.0,108680.0,0.18164306]
[1756634858575,0.18503958,108690.0,108680.0,0.18164306]
[1756634858986,0.19324005,108690.0,108680.0,0.18164306]
[1756634859202,0.19524005,108690.0,108680.0,0.18164306]
[1756634859947,0.19720005,108690.0,108680.0,0.18164306]
[1756634860506,0.20035005,108690.0,108680.0,0.02766]
[1756634860729,0.18406037,108660.0,108650.0,0.40327995]
[1756634860963,0.18406037,108660.0,108650.0,0.38575996]
[1756634861178,0.18602037,108660.0,108650.0,0.38580766]
[1756634861389,0.18602037,108660.0,108650.0,0.41347366]
[1756634862085,0.18917037,108660.0,108650.0,0.26147366]
[1756634862345,0.18917037,108660.0,108650.0,0.41639366]
[1756634862511,0.18917037,108660.0,108650.0,0.41843366]
[1756634863204,0.18917037,108660.0,108650.0,0.26351366]
[1756634863422,0.18917037,108660.0,108650.0,0.41859366]
[1756634864314,0.18917037,108660.0,108650.0,0.26351366]
[1756634864491,0.18917037,108660.0,108650.0,0.41859366]
[1756634867978,0.1982316,108660.0,108650.0,0.41859366]
[1756634868393,0.18602037,108660.0,108650.0,0.41859366]
[1756634868548,0.18406037,108660.0,108650.0,0.41859366]
[1756634868978,0.18406037,108660.0,108650.0,0.42179366]
[1756634869205,0.19532738,108660.0,108650.0,0.41851366]
[1756634869340,0.18406037,108660.0,108650.0,0.42171366]
[1756634869546,0.18602037,108660.0,108650.0,0.26351366]
[1756634869764,0.18896037,108660.0,108650.0,0.35159371]
[1756634869981,0.18896037,108660.0,108650.0,0.35155371]
[1756634870188,0.19833601,108660.0,108650.0,0.35155371]
[1756634870404,0.15031816,108670.0,108650.0,0.35155371]
[1756634870664,0.18617037,108660.0,108650.0,0.35464371]
[1756634870860,0.18617037,108660.0,108650.0,0.39226808]
[1756634871308,0.18406037,108660.0,108650.0,0.39026808]
[1756634871514,0.18406037,108660.0,108650.0,0.39126808]
[1756634871983,0.18406037,108660.0,108650.0,0.39026808]
[1756634872210,0.18406037,108660.0,108650.0,0.38726808]
[1756634872411,0.18406037,108660.0,108650.0,0.38926808]
[1756634872822,0.18406037,108660.0,108650.0,0.39126808]
[1756634873020,0.18406037,108660.0,108650.0,0.38926808]
[1756634873235,0.18406037,108660.0,108650.0,0.39226808]
[1756634873438,0.1933717,108660.0,108650.0,0.39226808]
[1756634878721,0.18406037,108660.0,108650.0,0.39226808]
[1756634878946,0.18604037,108660.0,108650.0,0.39226808]
[1756634879354,0.18604037,108660.0,108650.0,0.12579371]
[1756634879355,0.18763037,108660.0,108650.0,0.12579371]
[1756634879591,0.19695725,108660.0,108650.0,0.1615077]
[1756634879810,0.53695725,108660.0,108650.0,0.0051477]
[1756634880427,0.53695725,108660.0,108650.0,0.0031477]
[1756634880691,0.53695725,108660.0,108650.0,0.0001477]
[1756634880902,0.53695725,108660.0,108650.0,0.0011477]
[1756634881480,0.55399846,108660.0,108650.0,0.0011477]
[1756634881683,0.55499846,108660.0,108650.0,0.0011477]
[1756634882056,0.55499846,108660.0,108650.0,0.0001477]
[1756634882274,0.53795725,108660.0,108650.0,0.0001477]
[1756634882564,0.53895725,108660.0,108650.0,0.0001477]
[1756634883587,0.53538725,108660.0,108650.0,0.0053877]
[1756634883955,0.53736725,108660.0,108650.0,0.0053877]
[1756634884155,0.53736725,108660.0,108650.0,0.0001477]
[1756634884568,0.53895725,108660.0,108650.0,0.1565077]
[1756634884825,0.53736725,108660.0,108650.0,0.1565077]
[1756634885002,0.53736725,108660.0,108650.0,0.1595977]
[1756634885172,0.53636725,108660.0,108650.0,0.1617477]
[1756634885715,0.53736725,108660.0,108650.0,0.1617477]
[1756634885957,0.53636725,108660.0,108650.0,0.1617477]
[1756634886112,0.53636725,108660.0,108650.0,0.1627477]
[1756634886316,0.53636725,108660.0,108650.0,0.1575077]
[1756634886540,0.53536725,108660.0,108650.0,0.0011477]
[1756634886953,0.53636725,108660.0,108650.0,0.0011477]
[1756634887377,0.53536725,108660.0,108650.0,0.0011477]
[1756634890308,0.55240459,108660.0,108650.0,0.0011477]
[1756634890530,0.55340459,108660.0,108650.0,0.0011477]
[1756634890747,0.53636725,108660.0,108650.0,0.0011477]
[1756634890962,0.55240914,108660.0,108650.0,0.0011477]
[1756634891796,0.55240914,108660.0,108650.0,0.0063877]
[1756634893137,0.55240914,108660.0,108650.0,0.0042377]
[1756634895413,0.55240914,108660.0,108650.0,0.0011477]
[1756634897304,0.55399914,108660.0,108650.0,0.0001477]
[1756634897505,0.55499914,108660.0,108650.0,0.0001477]
[1756634897730,0.55599914,108660.0,108650.0,0.0001477]
[1756634898549,0.55440914,108660.0,108650.0,0.0001477]
[1756634899708,0.55599914,108660.0,108650.0,0.0001477]
[1756634900473,0.56293119,108660.0,108650.0,0.0001477]
[1756634900690,0.56293119,108660.0,108650.0,0.0053977]
[1756634900903,0.56095119,108660.0,108650.0,0.0053977]
[1756634901379,0.56291119,108660.0,108650.0,0.0053977]
[1756634901590,0.56291632,108660.0,108650.0,0.0053977]
[1756634902013,0.56091632,108660.0,108650.0,0.0053977]
[1756634902218,0.56191632,108660.0,108650.0,0.0053977]
[1756634902423,0.56291632,108660.0,108650.0,0.0001477]
[1756634903475,0.56450632,108660.0,108650.0,0.0001477]
[1756634903899,0.56291632,108660.0,108650.0,0.0001477]
[1756634904115,0.56191632,108660.0,108650.0,0.0001477]
[1756634905008,0.56291632,108660.0,108650.0,0.0001477]
[1756634905212,0.56191632,108660.0,108650.0,0.0001477]
[1756634905369,0.56291632,108660.0,108650.0,0.0001477]
[1756634907654,0.56450632,108660.0,108650.0,0.0001477]
[1756634908465,0.57090693,108660.0,108650.0,0.0001477]
[1756634912081,0.56450632,108660.0,108650.0,0.0001477]
[1756634912324,0.57096335,108660.0,108650.0,0.0001477]
[1756634912443,0.56937335,108660.0,108650.0,0.0001477]
[1756634912870,0.56937311,108660.0,108650.0,0.0001477]
[1756634913960,0.57096311,108660.0,108650.0,0.0001477]
[1756634914414,0.61831323,108660.0,108650.0,0.0001477]
[1756634915296,0.59863811,108660.0,108650.0,0.0001477]
[1756634915926,0.75442606,108660.0,108650.0,0.0001477]
[1756634916698,0.75279606,108660.0,108650.0,0.0001477]
[1756634917129,0.75279606,108660.0,108650.0,0.0033377]
[1756634917380,0.75279606,108660.0,108650.0,0.0001477]
[1756634920575,0.75275606,108660.0,108650.0,0.0001477]
[1756634922021,0.79471694,108660.0,108650.0,0.0001477]
[1756634922834,0.79471423,108660.0,108650.0,0.0001477]
[1756634923042,0.79469895,108660.0,108650.0,0.0001477]
[1756634923982,0.79469875,108660.0,108650.0,0.0001477]
[1756634927165,0.79469842,108660.0,108650.0,0.0001477]
[1756634927974,0.79449842,108660.0,108650.0,0.0001477]
[1756634928380,0.79449858,108660.0,108650.0,0.0001477]
[1756634929280,4.22008058,108660.0,108650.0,0.0001477]
[1756634930006,4.22004058,108660.0,108650.0,0.0001477]
[1756634930851,4.06456058,108660.0,108650.0,0.0001477]
[1756634931026,4.22004058,108660.0,108650.0,0.0001477]
[1756634933651,4.19444494,108660.0,108650.0,0.0001477]
[1756634933865,4.22004419,108660.0,108650.0,0.0001477]
[1756634937363,4.22004785,108660.0,108650.0,0.0001477]
[1756634937998,4.17808697,108660.0,108650.0,0.0001477]
[1756634941231,3.93181761,108660.0,108650.0,0.0001477]
[1756634941795,4.11587798,108660.0,108650.0,0.0001477]
[1756634942863,0.68805598,108660.0,108650.0,0.0054377]
[1756634943074,0.53285598,108660.0,108650.0,0.0054377]
[1756634943248,0.51548699,108660.0,108650.0,0.0054377]
[1756634943461,0.20274937,108660.0,108650.0,0.0054377]
[1756634944874,0.20174937,108660.0,108650.0,0.0054377]
[1756634945086,0.016689,108660.0,108650.0,0.18951501]
[1756634945311,0.001,108660.0,108650.0,0.31986584]
[1756634945532,0.001,108660.0,108650.0,0.32086584]
[1756634947005,0.32233227,108670.0,108650.0,0.32086584]
[1756634947221,0.66233227,108670.0,108660.0,0.00323]
[1756634947686,0.66233227,108670.0,108660.0,0.00529]
[1756634948175,0.66433227,108670.0,108660.0,0.00529]
[1756634948523,0.66333227,108670.0,108660.0,0.00529]
[1756634948715,0.66429227,108670.0,108660.0,0.00529]
[1756634948926,0.66529227,108670.0,108660.0,0.00529]
[1756634950000,0.66329227,108670.0,108660.0,0.00529]
[1756634950229,0.66429227,108670.0,108660.0,0.00529]